bitfinex-derivatives/quotes_BTCF0:USTF0_20250922
["timestamp","ask_amount","ask_price","bid_price","bid_amount"]
[1758502140465,0.38206,114790.0,114780.0,0.1215221]
[1758502140761,0.3608,114790.0,114780.0,0.1215221]
[1758502141069,0.38206,114800.0,114790.0,0.1215145]
[1758502141264,0.38206,114800.0,114790.0,0.39026203]
[1758502141460,0.36945409,114800.0,114790.0,0.1215145]
[1758502141762,0.41596384,114800.0,114790.0,0.1215145]
[1758502142062,0.66596384,114800.0,114790.0,0.03446]
[1758502142255,0.94205137,114800.0,114780.0,0.1002285]
[1758502142451,0.38206,114790.0,114780.0,0.1002285]
[1758502142656,0.41481975,114790.0,114780.0,0.1001285]
[1758502142864,0.66381975,114790.0,114780.0,0.0870621]
[1758502143168,0.66381975,114790.0,114780.0,0.0874621]
[1758502143357,0.66381975,114790.0,114780.0,0.0004]
[1758502143668,0.03411,114780.0,114770.0,0.0879669]
[1758502143861,0.39491,114780.0,114770.0,0.0870669]
[1758502144060,0.39491,114780.0,114770.0,0.0874669]
[1758502144664,0.64491,114780.0,114770.0,0.0874669]
[1758502145062,0.64491,114780.0,114770.0,0.0870669]
[1758502145367,0.64491,114780.0,114770.0,0.0874669]
[1758502145973,0.64391,114780.0,114770.0,0.0874669]
[1758502146171,0.64391,114780.0,114770.0,0.0004]
[1758502146371,0.66884721,114780.0,114770.0,0.0004]
[1758502146673,0.66884721,114780.0,114770.0,0.0874696]
[1758502146859,0.67584721,114780.0,114770.0,0.0014]
[1758502147064,0.94459474,114780.0,114770.0,0.0014]
[1758502147260,0.94259474,114780.0,114770.0,0.0014]
[1758502147467,0.94259474,114780.0,114770.0,0.001]
[1758502147468,0.94759474,114780.0,114770.0,0.001]
[1758502147660,0.94759474,114780.0,114770.0,0.0014]
[1758502147860,0.94759474,114780.0,114770.0,0.001]
[1758502148062,0.94759474,114780.0,114770.0,0.0014]
[1758502148467,0.97863388,114780.0,114770.0,0.0014]
[1758502148668,0.97863388,114780.0,114760.0,0.0001]
[1758502148669,0.03435,114770.0,114760.0,0.0001]
[1758502148867,0.02959,114760.0,114750.0,0.0879846]
[1758502149166,0.68407474,114760.0,114750.0,0.0878846]
[1758502149471,0.41532721,114760.0,114750.0,0.0870846]
[1758502149670,0.00751,114750.0,114740.0,0.107873]
[1758502149867,0.38951,114750.0,114740.0,0.107773]
[1758502150063,0.65825753,114750.0,114740.0,0.107773]
[1758502150262,0.41345041,114750.0,114740.0,0.108173]
[1758502150567,0.68219794,114750.0,114740.0,0.0004]
[1758502150772,0.93219794,114750.0,114740.0,0.0004]
[1758502150970,1.83723794,114750.0,114740.0,0.0004]
[1758502151475,1.83723794,114750.0,114720.0,0.02080051]
[1758502151476,0.03406,114730.0,114720.0,0.02080051]
[1758502151668,0.78059729,114730.0,114720.0,0.02000051]
[1758502151867,0.78059729,114730.0,114720.0,0.02040051]
[1758502152067,0.78059729,114730.0,114720.0,0.02000051]
[1758502152370,1.36740154,114730.0,114720.0,0.02040051]
[1758502152576,2.00341401,114730.0,114720.0,0.02000051]
[1758502152776,2.00341401,114730.0,114720.0,0.02040051]
[1758502152968,2.27216154,114730.0,114720.0,0.02000051]
[1758502153174,2.00341401,114730.0,114720.0,0.02140051]
[1758502153374,1.12969315,114730.0,114720.0,0.00067111]
[1758502153671,2.03529315,114730.0,114720.0,0.00067111]
[1758502153871,2.30404068,114730.0,114720.0,0.00107111]
[1758502154073,2.03529315,114730.0,114720.0,0.00067111]
[1758502154273,1.13069315,114730.0,114720.0,0.00107111]
[1758502154476,2.03517315,114730.0,114720.0,0.00107111]
[1758502154977,1.13069315,114730.0,114720.0,0.00107111]
[1758502155172,0.83679401,114730.0,114720.0,0.03672111]
[1758502155564,0.88069315,114730.0,114720.0,0.00107111]
[1758502155969,0.88069315,114730.0,114720.0,0.00067111]
[1758502156173,1.75397401,114730.0,114720.0,0.02404111]
[1758502156374,0.84965401,114730.0,114720.0,0.02404111]
[1758502156578,0.83679401,114730.0,114720.0,0.12382881]
[1758502156873,0.83679401,114730.0,114720.0,0.03672111]
[1758502157071,0.83679401,114730.0,114720.0,0.00107111]
[1758502157072,0.84965401,114730.0,114720.0,0.00107111]
[1758502157377,0.83679401,114730.0,114720.0,0.03672111]
[1758502157578,0.83679401,114730.0,114720.0,0.12382891]
[1758502157773,0.83679401,114730.0,114720.0,0.03672111]
[1758502157972,0.84965401,114730.0,114720.0,0.02404111]
[1758502158378,1.36840154,114730.0,114720.0,0.00067111]
[1758502158588,1.36840154,114730.0,114720.0,0.00107111]
[1758502158589,1.14621273,114730.0,114720.0,0.00107111]
[1758502158786,1.4457539,114730.0,114720.0,0.00107111]
[1758502159078,1.41496026,114730.0,114720.0,0.00107111]
[1758502159276,1.14621273,114730.0,114720.0,0.00107111]
[1758502159582,1.41496026,114730.0,114720.0,0.00107111]
[1758502159780,2.31912026,114730.0,114720.0,0.00107111]
[1758502160882,2.27256154,114730.0,114720.0,0.00107111]
[1758502161184,2.33445109,114730.0,114720.0,0.00107111]
[1758502161378,2.06570356,114730.0,114720.0,0.00067111]
[1758502161580,2.06570356,114730.0,114720.0,0.00107111]
[1758502161581,2.33445109,114730.0,114720.0,0.00107111]
[1758502161882,2.27256154,114730.0,114720.0,0.00067111]
[1758502162074,2.30334382,114730.0,114720.0,0.00067111]
[1758502162276,2.30334382,114730.0,114720.0,0.00107111]
[1758502162578,1.39918382,114730.0,114720.0,0.00107111]
[1758502162775,2.03427629,114730.0,114720.0,0.00107111]
[1758502162983,2.27224154,114730.0,114720.0,0.00107111]
[1758502163480,2.00349401,114730.0,114720.0,0.00107111]
[1758502163675,2.27224154,114730.0,114720.0,0.00107111]
[1758502164177,2.27220154,114730.0,114720.0,0.00107111]
[1758502164479,2.00345401,114730.0,114720.0,0.00107111]
[1758502164982,2.27220154,114730.0,114720.0,0.00107111]
[1758502165679,2.00345401,114730.0,114720.0,0.00107111]
[1758502165878,2.27220154,114730.0,114720.0,0.00107111]
[1758502166574,0.01284,114720.0,114670.0,0.00048061]
[1758502166782,0.74422,114680.0,114670.0,0.1241613]
[1758502166986,0.74422,114680.0,114670.0,0.39290883]
[1758502167287,0.7529783,114680.0,114670.0,0.39330883]
[1758502167581,0.74422,114680.0,114670.0,0.64330883]
[1758502167782,0.7216,114680.0,114670.0,0.66630883]
[1758502168683,0.7226,114680.0,114670.0,0.66630883]
[1758502169680,0.3608,114690.0,114680.0,0.1241583]
[1758502170078,0.3608,114690.0,114680.0,0.39290583]
[1758502170379,0.38342,114690.0,114680.0,0.1241583]
[1758502170978,0.38342,114690.0,114680.0,0.1421583]
[1758502171174,0.39578,114690.0,114680.0,0.1425583]
[1758502171377,0.39578,114690.0,114680.0,0.1421583]
[1758502171681,0.39578,114690.0,114680.0,0.1425583]
[1758502172681,0.38342,114690.0,114680.0,0.1425583]
[1758502174683,0.3608,114690.0,114680.0,0.3925583]
[1758502174876,0.3608,114690.0,114680.0,0.66130583]
[1758502176679,0.3608,114690.0,114680.0,0.3925583]
[1758502176878,0.3608,114690.0,114680.0,1.56454583]
[1758502177075,0.38342,114690.0,114680.0,1.0457583]
[1758502177475,0.38342,114690.0,114680.0,1.0453583]
[1758502177781,0.38342,114690.0,114680.0,1.0457583]
[1758502178084,0.38342,114690.0,114680.0,0.41090583]
[1758502178280,0.40993712,114690.0,114680.0,0.41130583]
[1758502178581,0.38342,114690.0,114680.0,0.41130583]
[1758502179287,0.40995126,114690.0,114680.0,0.1425583]
[1758502179484,0.40995126,114690.0,114680.0,0.1421583]
[1758502179680,0.40995126,114690.0,114680.0,0.1425583]
[1758502179878,0.40995126,114690.0,114680.0,0.1421583]
[1758502180078,0.42231126,114690.0,114680.0,0.1288383]
[1758502180277,0.67231126,114690.0,114680.0,0.0184]
[1758502180474,0.67231126,114690.0,114680.0,0.018]
[1758502180681,0.67231126,114690.0,114680.0,0.1284383]
[1758502180982,0.65995126,114690.0,114680.0,0.1425583]
[1758502181393,0.67231126,114690.0,114680.0,0.1425583]
[1758502181681,0.67231126,114690.0,114680.0,0.0184]
[1758502181876,0.67231126,114690.0,114680.0,0.018]
[1758502182077,0.94105879,114690.0,114680.0,0.0184]
[1758502182276,0.67231126,114690.0,114680.0,0.0184]
[1758502183078,0.94105879,114690.0,114680.0,0.0184]
[1758502183277,1.04241687,114690.0,114680.0,0.0184]
[1758502183482,1.04241687,114690.0,114680.0,0.018]
[1758502183685,0.77366934,114690.0,114680.0,0.0184]
[1758502183881,1.04241687,114690.0,114680.0,0.0184]
[1758502184076,0.22214691,114670.0,114660.0,0.0472168]
[1758502184291,0.97027817,114670.0,114660.0,0.04282425]
[1758502184488,1.25110245,114670.0,114660.0,0.04202425]
[1758502184786,1.51984998,114670.0,114660.0,0.03795023]
[1758502184987,1.2665146,114670.0,114660.0,0.03795023]
[1758502185290,1.56615715,114670.0,114660.0,0.03795023]
[1758502185587,1.29740962,114670.0,114660.0,0.03795023]
[1758502185886,1.2665146,114670.0,114660.0,0.03795023]
[1758502186385,1.9334746,114670.0,114660.0,0.12510373]
[1758502186691,2.23310246,114670.0,114660.0,0.12510373]
[1758502186891,2.23310246,114670.0,114660.0,0.13910373]
[1758502187089,1.0021585,114670.0,114660.0,0.14510373]
[1758502187386,1.0021585,114670.0,114660.0,0.18212373]
[1758502187584,1.0021585,114670.0,114660.0,0.16840373]
[1758502187785,1.0021585,114670.0,114660.0,0.05795023]
[1758502187985,1.0021585,114670.0,114660.0,0.14510373]
[1758502188485,1.31714246,114670.0,114660.0,0.14510373]
[1758502188687,1.04839493,114670.0,114660.0,0.14510373]
[1758502188893,1.04839493,114670.0,114660.0,0.14470373]
[1758502189291,0.9893185,114670.0,114660.0,0.43212373]
[1758502189596,0.98876128,114670.0,114660.0,0.43212373]
[1758502189889,0.98876128,114670.0,114660.0,0.30795023]
[1758502190084,0.98876128,114670.0,114660.0,0.14510363]
[1758502190488,0.98876128,114670.0,114660.0,0.16800363]
[1758502190698,0.97592128,114670.0,114660.0,0.18212363]
[1758502191191,0.98876128,114670.0,114660.0,0.18212363]
[1758502191394,0.98876128,114670.0,114660.0,0.16840363]
[1758502191595,0.98876128,114670.0,114660.0,0.18212363]
[1758502191998,0.97592128,114670.0,114660.0,0.18212363]
[1758502192199,0.98876128,114670.0,114660.0,0.14510363]
[1758502192500,0.98876128,114670.0,114660.0,0.16840363]
[1758502192692,0.98918877,114670.0,114660.0,0.05795023]
[1758502192887,0.97127817,114670.0,114660.0,0.14510363]
[1758502193401,0.98918877,114670.0,114660.0,0.14510363]
[1758502193795,0.98918877,114670.0,114660.0,0.16840363]
[1758502194499,0.98918877,114670.0,114660.0,0.05795023]
[1758502194999,1.0200691,114670.0,114660.0,0.14470363]
[1758502195200,0.98918877,114670.0,114660.0,0.14510363]
[1758502195394,0.98918877,114670.0,114660.0,0.16826363]
[1758502196105,0.98918877,114670.0,114660.0,0.18097363]
[1758502196302,1.92218877,114670.0,114660.0,0.18097363]
[1758502197000,0.97634877,114670.0,114660.0,0.18097363]
[1758502197304,0.97634877,114670.0,114660.0,0.51991218]
[1758502197503,0.97634877,114670.0,114660.0,0.43097363]
[1758502197701,0.97634877,114670.0,114660.0,0.76991218]
[1758502198302,0.95372877,114670.0,114660.0,0.76991218]
[1758502198502,0.95372877,114670.0,114660.0,0.43097363]
[1758502198703,0.95372877,114670.0,114660.0,0.76991218]
[1758502198901,0.95372877,114670.0,114660.0,0.43097363]
[1758502199101,0.95372877,114670.0,114660.0,0.76991218]
[1758502199403,0.54848691,114670.0,114660.0,0.76991218]
[1758502199598,0.57412937,114670.0,114660.0,0.43097363]
[1758502199799,0.57412937,114670.0,114660.0,0.76991218]
[1758502200006,0.21332937,114670.0,114660.0,0.76991218]
[1758502201503,0.73938953,114700.0,114690.0,0.71193915]
[1758502201699,0.01778953,114700.0,114690.0,0.71193915]
[1758502202097,0.01778953,114700.0,114690.0,0.3730006]
[1758502202400,0.3608,114710.0,114700.0,0.122993]
[1758502202598,0.38387,114710.0,114700.0,0.46193155]
[1758502202800,0.3608,114710.0,114700.0,0.46193155]
[1758502203003,0.38387,114710.0,114700.0,0.46193155]
[1758502203194,0.38387,114710.0,114700.0,0.122993]
[1758502203608,0.73542855,114710.0,114690.0,0.0912299]
[1758502203797,0.39649,114700.0,114690.0,0.0041]
[1758502204000,0.39649,114700.0,114680.0,0.0999464]
[1758502204196,0.39645,114690.0,114680.0,0.0001]
[1758502204399,0.03565,114680.0,114670.0,0.10867743]
[1758502204607,0.38387,114680.0,114670.0,0.14444743]
[1758502204814,0.39645,114680.0,114670.0,0.02396]
[1758502205114,0.03569,114670.0,114660.0,0.03765023]
[1758502205296,0.98542855,114670.0,114660.0,0.03755023]
[1758502205499,0.66849604,114670.0,114660.0,0.03755023]
[1758502205695,0.66849604,114670.0,114660.0,0.03795023]
[1758502205901,0.66849604,114670.0,114660.0,0.03755023]
[1758502206104,0.66849604,114670.0,114660.0,0.03795023]
[1758502206410,0.63749,114670.0,114660.0,0.03795023]
[1758502206613,0.97742855,114670.0,114660.0,0.04395023]
[1758502206820,0.63849,114670.0,114660.0,0.04395023]
[1758502207102,0.66249588,114670.0,114660.0,0.05795023]
[1758502207614,1.00143443,114670.0,114660.0,0.05795023]
[1758502208211,0.75143443,114670.0,114660.0,0.05795023]
[1758502208908,0.75143443,114670.0,114660.0,0.05755023]
[1758502208909,1.00143443,114670.0,114660.0,0.05755023]
[1758502209114,0.75143443,114670.0,114660.0,0.05755023]
[1758502209411,0.75143443,114670.0,114660.0,0.05795023]
[1758502210008,1.94227443,114670.0,114660.0,0.05795023]
[1758502210407,1.94227443,114670.0,114660.0,0.05755023]
[1758502211014,1.92182683,114670.0,114660.0,0.0216659]
[1758502211515,2.06652683,114670.0,114660.0,0.0216659]
[1758502211712,0.78674828,114670.0,114660.0,0.0216659]
[1758502212015,1.12568683,114670.0,114660.0,0.0216659]
[1758502212217,2.06468683,114670.0,114660.0,0.0216659]
[1758502212512,0.85168095,114670.0,114660.0,0.0216659]
[1758502212711,1.4513824,114670.0,114660.0,0.0216659]
[1758502212912,1.79032095,114670.0,114660.0,0.0216659]
[1758502213109,1.10168095,114670.0,114660.0,0.0216659]
[1758502213315,1.7011824,114670.0,114660.0,0.0216659]
[1758502213510,0.95698095,114670.0,114660.0,0.1088193]
[1758502213716,1.33052339,114670.0,114660.0,0.1225193]
[1758502213915,1.66946194,114670.0,114660.0,0.1088193]
[1758502214119,1.64546095,114670.0,114660.0,0.1088193]
[1758502214416,1.64546095,114670.0,114660.0,0.0216659]
[1758502214605,1.66946184,114670.0,114660.0,0.0216659]
[1758502214810,1.33052329,114670.0,114660.0,0.1088193]
[1758502215211,1.66946184,114670.0,114660.0,0.0216659]
[1758502215416,1.33052329,114670.0,114660.0,0.0216659]
[1758502215616,1.66946184,114670.0,114660.0,0.0216659]
[1758502215819,1.89546095,114670.0,114660.0,0.0216659]
[1758502216515,1.89546095,114670.0,114660.0,0.0212659]
[1758502216711,1.89546095,114670.0,114660.0,0.0216659]
[1758502216918,1.89546095,114670.0,114660.0,0.0212659]
[1758502217220,1.5586024,114670.0,114660.0,0.0216659]
[1758502217511,0.95698095,114670.0,114660.0,0.0216659]
[1758502217718,1.64654095,114670.0,114660.0,0.0216659]
[1758502218221,1.3076024,114670.0,114660.0,0.0216659]
[1758502218414,0.70698095,114670.0,114660.0,0.0216659]
[1758502218615,1.64658095,114670.0,114660.0,0.1225193]
[1758502218917,0.70698095,114670.0,114660.0,0.1225193]
[1758502219117,1.64578095,114670.0,114660.0,0.1225193]
[1758502220013,1.3068424,114670.0,114660.0,0.1225193]
[1758502220219,1.64578095,114670.0,114660.0,0.1225193]
[1758502220513,1.64578095,114670.0,114660.0,0.0353659]
[1758502220715,1.64578095,114670.0,114660.0,0.0216659]
[1758502221618,1.79048095,114670.0,114660.0,0.0216659]
[1758502222316,1.4515424,114670.0,114660.0,0.0216659]
[1758502222511,1.79048095,114670.0,114660.0,0.0212659]
[1758502222911,1.4515424,114670.0,114660.0,0.0212659]
[1758502223113,1.4480224,114670.0,114660.0,0.0216659]
[1758502223421,1.78696095,114670.0,114660.0,0.0216659]
[1758502224524,1.4480224,114670.0,114660.0,0.0346559]
[1758502224820,1.78696095,114670.0,114660.0,0.0216659]
[1758502225018,1.4467824,114670.0,114660.0,0.0346559]
[1758502225218,1.78572095,114670.0,114660.0,0.0346559]
[1758502225418,1.4467824,114670.0,114660.0,0.0346559]
[1758502225628,1.4466224,114670.0,114660.0,0.1218092]
[1758502225920,1.3008824,114670.0,114660.0,0.3934892]
[1758502226109,0.3680424,114670.0,114660.0,0.3934892]
[1758502226312,1.3008424,114670.0,114660.0,0.3934892]
[1758502226814,1.63978095,114670.0,114660.0,0.1218092]
[1758502227221,1.3008424,114670.0,114660.0,0.1218092]
[1758502227421,1.3008424,114670.0,114660.0,0.1214092]
[1758502227621,1.63978095,114670.0,114660.0,0.1218092]
[1758502227821,1.63978095,114670.0,114660.0,0.1214092]
[1758502228019,1.63978095,114670.0,114660.0,0.1218092]
[1758502228422,1.63978095,114670.0,114660.0,0.0216659]
[1758502229022,1.66376935,114670.0,114660.0,0.0212659]
[1758502229216,1.66376935,114670.0,114660.0,0.0216659]
[1758502229411,1.66377071,114670.0,114660.0,0.0216659]
[1758502230514,1.91377071,114670.0,114660.0,0.0216659]
[1758502230924,1.91377071,114670.0,114660.0,0.0212659]
[1758502231126,1.91377071,114670.0,114660.0,0.0216659]
[1758502231919,1.91377071,114670.0,114660.0,0.0212659]
[1758502232121,1.91377071,114670.0,114660.0,0.0216659]
[1758502232523,1.57483216,114670.0,114660.0,0.0216659]
[1758502232725,1.91377071,114670.0,114660.0,0.0212659]
[1758502233027,1.91377071,114670.0,114660.0,0.0216659]
[1758502233531,0.98097071,114670.0,114660.0,0.0216659]
[1758502233728,1.90865071,114670.0,114660.0,0.0216659]
[1758502233931,1.90865071,114670.0,114660.0,0.0212659]
[1758502234228,1.90865071,114670.0,114660.0,0.0216659]
[1758502234530,1.90865071,114670.0,114660.0,0.00509545]
[1758502234827,1.93841104,114670.0,114650.0,0.14737209]
[1758502235125,0.69973855,114660.0,114650.0,0.13614908]
[1758502235327,0.69973855,114660.0,114620.0,0.04267229]
[1758502235328,0.5055,114650.0,114620.0,0.04267229]
[1758502235526,0.7216,114630.0,114620.0,0.04267229]
[1758502235728,1.61328,114630.0,114620.0,0.15153599]
[1758502235921,0.7216,114630.0,114620.0,0.15193599]
[1758502236120,1.65028,114630.0,114620.0,0.40193599]
[1758502236323,0.7216,114630.0,114620.0,0.40193599]
[1758502236631,0.7076,114630.0,114620.0,0.40193599]
[1758502236823,1.59806769,114630.0,114620.0,0.40193599]
[1758502237220,1.59206769,114630.0,114620.0,0.42593599]
[1758502237622,1.59206769,114630.0,114620.0,0.33875229]
[1758502237823,1.59206769,114630.0,114620.0,0.42593599]
[1758502238027,1.59306769,114630.0,114620.0,0.43693599]
[1758502238625,0.78022439,114630.0,114620.0,0.43693599]
[1758502238828,1.70846439,114630.0,114620.0,0.43693599]
[1758502239334,1.70846439,114630.0,114620.0,0.18693599]
[1758502239630,2.04740294,114630.0,114620.0,0.09975229]
[1758502239825,1.70846439,114630.0,114620.0,0.16525599]
[1758502240031,2.07172307,114630.0,114620.0,0.16485599]
[1758502240225,2.04740294,114630.0,114620.0,0.16525599]
[1758502240837,2.04740294,114630.0,114620.0,0.18693599]
[1758502241430,2.04740294,114630.0,114620.0,0.07807229]
[1758502241935,2.0647645,114630.0,114620.0,0.07767229]
[1758502242141,1.3631645,114630.0,114620.0,0.01111021]
[1758502242328,2.02012601,114630.0,114620.0,0.01339]
[1758502242530,2.02012601,114630.0,114620.0,0.01299]
[1758502242835,2.35906456,114630.0,114620.0,0.0004]
[1758502243035,2.02012601,114630.0,114620.0,0.0004]
[1758502243336,2.35906456,114630.0,114620.0,0.0004]
[1758502243931,2.35906456,114630.0,114610.0,0.01304027]
[1758502244135,0.69973855,114620.0,114610.0,0.01304027]
[1758502245438,0.7240104,114620.0,114610.0,0.01304027]
[1758502245643,0.7240104,114620.0,114610.0,0.01344027]
[1758502245831,0.3608,114620.0,114610.0,0.01344027]
[1758502246136,0.72401034,114620.0,114610.0,0.01344027]
[1758502246332,0.70073855,114620.0,114610.0,0.01544027]
[1758502247242,1.29392,114620.0,114610.0,0.01544027]
[1758502247537,1.63285855,114620.0,114610.0,0.01544027]
[1758502247841,0.70173855,114620.0,114610.0,0.01544027]
[1758502248040,1.29316,114620.0,114610.0,0.28712027]
[1758502248242,1.2932,114620.0,114610.0,0.37431137]
[1758502248442,1.2932,114620.0,114610.0,0.71324992]
[1758502248443,0.3628,114620.0,114610.0,0.71324992]
[1758502248644,0.3628,114620.0,114610.0,0.37431137]
[1758502248838,0.3628,114620.0,114610.0,0.71324992]
[1758502249836,0.3628,114620.0,114610.0,0.12431137]
[1758502250237,0.3628,114620.0,114610.0,0.37431137]
[1758502250435,0.3628,114620.0,114610.0,0.12391137]
[1758502250630,0.70173855,114620.0,114610.0,0.12431137]
[1758502250831,0.70173855,114620.0,114610.0,0.01504027]
[1758502251337,0.70173855,114620.0,114610.0,0.01544027]
[1758502251535,0.3628,114620.0,114610.0,0.01504027]
[1758502251736,0.70173855,114620.0,114610.0,0.01544027]
[1758502252236,0.3628,114620.0,114610.0,0.01544027]
[1758502252431,0.97599733,114620.0,114610.0,0.01504027]
[1758502252632,0.97599733,114620.0,114610.0,0.01544027]
[1758502252836,0.63705878,114620.0,114610.0,0.01544027]
[1758502253037,0.97599733,114620.0,114610.0,0.01544027]
[1758502254346,0.63705878,114620.0,114610.0,0.01554027]
[1758502254541,0.72599733,114620.0,114610.0,0.01554027]
[1758502254745,0.97599733,114620.0,114580.0,0.08803992]
[1758502254943,0.7216,114590.0,114580.0,0.00082642]
[1758502255152,1.74234784,114590.0,114580.0,0.00122642]
[1758502255352,2.08128639,114590.0,114580.0,0.00082642]
[1758502255557,2.10625568,114590.0,114580.0,0.00082642]
[1758502255751,2.10625568,114590.0,114580.0,0.0004]
[1758502256051,1.76731713,114590.0,114570.0,0.14597315]
[1758502256255,0.47379713,114590.0,114580.0,0.1011044]
[1758502256547,0.47379713,114590.0,114580.0,0.0124]
[1758502256548,2.25111568,114590.0,114580.0,0.0124]
[1758502256751,2.35641568,114590.0,114580.0,0.0124]
[1758502256956,2.35641568,114590.0,114570.0,0.02326185]
[1758502257249,1.05553855,114580.0,114570.0,0.02326185]
[1758502257453,1.32978784,114580.0,114550.0,0.01349]
[1758502257656,0.7216,114560.0,114550.0,0.0008]
[1758502257850,1.08478784,114560.0,114550.0,0.0008]
[1758502258346,1.33478784,114560.0,114530.0,0.10839504]
[1758502258555,0.99159941,114540.0,114530.0,0.10919504]
[1758502258854,1.66348,114540.0,114530.0,0.10879504]
[1758502259451,1.65848,114540.0,114530.0,0.10879504]
[1758502259655,1.66168,114540.0,114530.0,0.10879854]
[1758502259852,1.66168,114540.0,114510.0,0.01434039]
[1758502259853,2.19904503,114540.0,114510.0,5.039e-05]
[1758502260046,2.19904503,114540.0,114470.0,0.01349]
[1758502260047,0.99159941,114520.0,114470.0,0.01349]
[1758502260247,0.53999882,114480.0,114450.0,0.02123577]
[1758502260449,0.26999941,114460.0,114410.0,0.01349]
[1758502260654,0.952,114450.0,114430.0,0.0008]
[1758502260951,2.55988,114440.0,114400.0,0.01349]
[1758502261263,0.95176,114430.0,114420.0,0.01349]
[1758502261451,0.7216,114430.0,114400.0,0.01349]
[1758502261642,0.7216,114410.0,114380.0,0.0213248]
[1758502261946,0.99159941,114390.0,114380.0,0.0229248]
[1758502262146,0.7216,114390.0,114380.0,0.0229248]
[1758502262353,1.76415941,114390.0,114380.0,0.0229248]
[1758502262547,0.7216,114390.0,114380.0,0.0213248]
[1758502262755,1.49244,114390.0,114370.0,0.0046148]
[1758502262948,1.13164,114390.0,114380.0,0.01349]
[1758502263250,1.20312048,114390.0,114380.0,0.26349]
[1758502263555,0.3608,114400.0,114390.0,0.01349]
[1758502263850,0.3608,114400.0,114390.0,0.26349]
[1758502264154,0.79111077,114400.0,114390.0,0.26349]
[1758502264351,0.79111077,114400.0,114370.0,0.3612]
[1758502264554,0.3608,114380.0,114370.0,0.01349]
[1758502264856,0.3608,114380.0,114370.0,0.26999941]
[1758502265150,0.3608,114380.0,114370.0,0.26389]
[1758502265350,0.3608,114380.0,114370.0,0.01389]
[1758502265556,0.35904281,114380.0,114370.0,0.62126021]
[1758502265756,0.28904281,114380.0,114370.0,0.3612608]
[1758502265957,0.3628,114390.0,114380.0,0.01349]
[1758502266147,0.3608,114390.0,114380.0,0.28348941]
[1758502266352,0.3608,114390.0,114380.0,0.53348941]
[1758502266859,0.62463,114390.0,114370.0,0.0004]
[1758502267155,0.3608,114380.0,114370.0,0.0004]
[1758502267346,0.37463,114380.0,114370.0,0.0004]
[1758502267755,0.3608,114380.0,114370.0,0.01389]
[1758502268053,0.3608,114380.0,114370.0,0.62086021]
[1758502268258,0.3628,114390.0,114380.0,0.1008532]
[1758502268461,0.002,114390.0,114380.0,0.28348941]
[1758502268654,0.3628,114390.0,114380.0,0.53348941]
[1758502268853,0.3608,114400.0,114380.0,0.26349]
[1758502269056,0.3608,114390.0,114380.0,0.01349]
[1758502269361,0.3628,114390.0,114380.0,0.01349]
[1758502269754,0.3628,114390.0,114380.0,0.26349]
[1758502270059,0.002,114390.0,114380.0,1.98605271]
[1758502270354,0.3596269,114400.0,114390.0,0.1009056]
[1758502270563,0.3608,114410.0,114400.0,0.01355]
[1758502270858,0.3608,114410.0,114400.0,0.28354941]
[1758502271057,0.3608,114410.0,114400.0,0.62089761]
[1758502271260,0.3608,114410.0,114400.0,0.3508982]
[1758502271450,0.37840079,114420.0,114410.0,0.1008905]
[1758502271761,0.37840079,114420.0,114410.0,1.37536991]
[1758502271952,0.3608,114420.0,114410.0,1.62596991]
[1758502272348,0.3608,114430.0,114420.0,0.01355]
[1758502272552,0.6108,114430.0,114420.0,0.01355]
[1758502272758,0.3608,114430.0,114420.0,0.01355]
[1758502273561,0.3608,114430.0,114420.0,0.101283]
[1758502273760,0.36123,114440.0,114420.0,1.37564241]
[1758502273961,0.36123,114440.0,114430.0,0.1008753]
[1758502274148,0.36123,114440.0,114430.0,0.37087471]
[1758502274149,0.00033,114440.0,114430.0,0.37087471]
[1758502274456,0.00033,114440.0,114430.0,0.62087471]
[1758502274662,0.0001,114450.0,114440.0,0.1008678]
[1758502274854,0.3608,114460.0,114450.0,0.01355]
[1758502274855,0.3609,114460.0,114450.0,0.01355]
[1758502275062,0.6108,114460.0,114450.0,0.28354941]
[1758502275359,0.3608,114460.0,114450.0,0.28354941]
[1758502275557,0.3608,114460.0,114450.0,1.01927]
[1758502275958,0.3608,114460.0,114450.0,1.37697961]
[1758502276153,0.3609,114470.0,114460.0,0.1008526]
[1758502276358,0.3609,114480.0,114470.0,0.01355]
[1758502276661,0.6108,114480.0,114470.0,0.100845]
[1758502276857,0.6108,114480.0,114470.0,0.37084441]
[1758502277064,0.6108,114480.0,114470.0,0.01355]
[1758502277454,0.87393,114480.0,114470.0,1.00536]
[1758502277654,1.14392941,114480.0,114470.0,0.0004]
[1758502277855,0.01313,114450.0,114410.0,0.0001]
[1758502278062,0.3608,114420.0,114410.0,1.0926208]
[1758502278258,0.3608,114420.0,114410.0,1.1051208]
[1758502278454,0.3608,114420.0,114410.0,0.28249941]
[1758502278664,0.3608,114420.0,114410.0,0.1002407]
[1758502278854,0.3608,114420.0,114410.0,2.87476011]
[1758502279055,0.3608,114420.0,114410.0,3.12476011]
[1758502279364,0.3608,114440.0,114430.0,0.01355]
[1758502279754,0.3608,114440.0,114430.0,1.00484]
[1758502279949,0.3608,114440.0,114430.0,1.0921653]
[1758502280150,0.3608,114440.0,114430.0,1.0046]
[1758502280357,0.89392941,114440.0,114410.0,1.5125]
[1758502280659,0.7216,114420.0,114410.0,1.5]
[1758502281060,1.25472941,114420.0,114410.0,0.0008]
[1758502281366,0.01313,114410.0,114400.0,0.0008]
[1758502281666,0.01313,114400.0,114390.0,1.5]
[1758502281856,0.01313,114400.0,114380.0,1.84116]
[1758502281857,0.37393,114400.0,114380.0,1.84116]
[1758502282051,0.64392941,114390.0,114380.0,1.84116]
[1758502282365,0.37393,114390.0,114380.0,2.84832]
[1758502282565,0.3608,114390.0,114380.0,2.9360838]
[1758502282758,0.3608,114390.0,114380.0,1.9281238]
[1758502283062,0.3608,114390.0,114380.0,2.84836]
[1758502283262,0.3608,114390.0,114380.0,1.0072]
[1758502283458,0.37393,114390.0,114360.0,1.5998757]
[1758502283768,0.73545,114370.0,114360.0,0.0873791]
[1758502284062,0.6591108,114370.0,114360.0,1.0936991]
[1758502284266,1.17911021,114370.0,114360.0,0.0004]
[1758502284464,0.01385,114360.0,114350.0,1.0932266]
[1758502284654,0.37465,114360.0,114350.0,1.0926266]
[1758502284849,0.3608,114360.0,114350.0,1.0926266]
[1758502285461,0.2844608,114370.0,114360.0,0.0873791]
[1758502285673,0.2844608,114370.0,114360.0,0.36987851]
[1758502285958,0.2864608,114370.0,114360.0,1.3555591]
[1758502286151,0.2864608,114370.0,114360.0,0.3373791]
[1758502286463,0.2864608,114370.0,114360.0,1.61237851]
[1758502286663,0.2864608,114370.0,114360.0,0.3377791]